fUST/lending_fUST_20260208
["ID","MTS","AMOUNT","RATE_DAILY","PERIOD"]
[404712736,1770489325295,500.0,0.00013273,2]
[404712737,1770489328171,154.67007198,0.00013699,2]
[404712738,1770489329609,300.0,0.00013673,2]
[404712739,1770489330330,500.0,0.00013273,2]
[404712740,1770489333335,500.0,0.00013273,2]
[404712741,1770489357616,10000.0,0.000159,2]
[404712742,1770489364169,500.0,0.00013273,2]
[404712743,1770489364200,1000.0,0.00013821,2]
[404712744,1770489364260,1500.0,0.00014368,2]
[404712745,1770489364290,500.80139127,0.00013273,2]
[404712746,1770489364327,500.0,0.00013273,2]
[404712747,1770489364363,949.78290204,0.00013821,2]
[404712748,1770489364391,500.0,0.00013273,2]
[404712749,1770489365043,500.0,0.00013699,2]
[404712750,1770489366108,212.28615271,0.00013699,2]
[404712751,1770489366183,500.0,0.00013273,2]
[404712752,1770489381918,10000.0,0.000159,2]
[404712753,1770489424418,500.0,0.00013699,2]
[404712754,1770489424471,1000.0,0.00014247,2]
[404712755,1770489424674,1500.0,0.00014795,2]
[404712756,1770489424702,321.68310957,0.00015342,2]
[404712757,1770489426766,500.0,0.00013273,2]
[404712758,1770489427057,210.22335641,0.00013821,2]
[404712759,1770489437159,307.55128783,0.00013699,2]
[404712760,1770489440625,500.0,0.00013273,2]
[404712761,1770489441656,500.0,0.00013273,2]
[404712762,1770489444664,500.0,0.00013273,2]
[404712763,1770489446766,500.0,0.00013273,2]
[404712764,1770489488648,390.23848573,0.00013821,2]
[404712765,1770489488696,500.0,0.00013273,2]
[404712766,1770489514624,310.10656131,0.000159,2]
[404712767,1770489543591,353.66994885,0.00013273,2]
[404712768,1770489554321,503.24880264,0.00013699,2]
[404712769,1770489557787,500.0,0.00013273,2]
[404712770,1770489559069,300.0,0.00013673,2]
[404712771,1770489560350,269.7084018,0.00013273,2]
[404712772,1770489561343,1000.0,0.00013821,2]
[404712773,1770489561559,500.0,0.00013273,2]
[404712774,1770489563134,500.0,0.00013273,2]
[404712775,1770489563182,1000.0,0.00013821,2]
[404712776,1770489563241,1000.0,0.00014368,2]
[404712777,1770489563818,500.0,0.00013273,2]
[404712778,1770489603468,504.67782244,0.00013699,2]
[404712779,1770489603580,500.0,0.00013273,2]
[404712780,1770489605487,500.0,0.00013273,2]
[404712781,1770489605539,500.0,0.00013821,2]
[404712782,1770489605781,500.0,0.00013699,2]
[404712783,1770489607845,500.0,0.00013699,2]
[404712784,1770489607895,375.31483149,0.00014247,2]
[404712785,1770489608418,560.73111469,0.00013273,2]
[404712786,1770489608501,172.2356625,0.00013273,2]
[404712789,1770489664291,438.47843307,0.00013699,2]
[404712790,1770489665794,500.75359383,0.00013699,2]
[404712791,1770489666371,500.54275101,0.00013699,2]
[404712792,1770489666790,503.21175575,0.00013273,2]
[404712793,1770489666931,500.0,0.00013273,2]
[404712794,1770489667238,500.0,0.00013273,2]
[404712795,1770489667290,1000.0,0.00013821,2]
[404712796,1770489667350,1500.0,0.00014368,2]
[404712797,1770489667403,669.24202811,0.00014916,2]
[404712798,1770489667468,500.0,0.00013699,2]
[404712799,1770489667502,260.05017888,0.00014247,2]
[404712800,1770489667789,495.62038002,0.00013699,2]
[404712801,1770489670800,500.0,0.00013273,2]
[404712802,1770489670851,345.20676096,0.00013821,2]
[404712803,1770489675752,233.28327513,0.00013273,2]
[404712804,1770489683563,500.0,0.00013273,2]
[404712805,1770489683644,1000.0,0.00013821,2]
[404712806,1770489685899,500.0,0.00013273,2]
[404712807,1770489685942,1000.0,0.00013821,2]
[404712808,1770489686927,500.0,0.00013273,2]
[404712809,1770489725898,500.74819225,0.00013699,2]
[404712810,1770489727983,546.58941443,0.00013273,2]
[404712811,1770489783258,500.0,0.00013699,2]
[404712812,1770489783475,500.0,0.00013699,2]
[404712813,1770489785051,500.0,0.00013273,2]
[404712814,1770489785080,500.33987977,0.00013699,2]
[404712815,1770489785108,1000.0,0.00013821,2]
[404712816,1770489786858,504.09505111,0.00013273,2]
[404712817,1770489799745,500.0,0.00013273,2]
[404712818,1770489800878,500.0,0.00013273,2]
[404712819,1770489892455,161.0,8.3e-07,2]
[404712820,1770489893518,161.0,8.3e-07,2]
[404712821,1770489894812,161.0,8.3e-07,2]
[404712822,1770489895921,161.0,8.3e-07,2]
[404712823,1770489896954,161.0,8.3e-07,2]
[404712824,1770489898016,161.0,8.3e-07,2]
[404712825,1770489899113,161.0,8.3e-07,2]
[404712826,1770489900373,161.0,8.3e-07,2]
[404712827,1770489901400,161.0,8.3e-07,2]
[404712828,1770489902451,161.0,8.3e-07,2]
[404712829,1770489903613,500.0,0.00013699,2]
[404712830,1770489903673,500.0,0.00013273,2]
[404712831,1770489903702,500.0,0.00013699,2]
[404712832,1770489903736,602.95161427,0.00013699,2]
[404712833,1770489913651,569.85458534,0.00013273,2]
[404712834,1770489941024,500.0,0.00013273,2]
[404712835,1770489971255,500.0,0.00013699,2]
[404712836,1770489974055,500.0,0.00013699,2]
[404712861,1770490023427,425.51271515,0.00013699,2]
[404712862,1770490024054,500.0,0.00013273,2]
[404712863,1770490024083,543.57219283,0.00013821,2]
[404712871,1770490143859,643.52304824,0.00013699,2]
[404712872,1770490144399,500.0,0.00013699,2]
[404712873,1770490144426,500.76519388,0.00013699,2]
[404712874,1770490144538,500.0,0.00013699,2]
[404712875,1770490145204,500.0,0.00013699,2]
[404712876,1770490145237,499.91231904,0.00013699,2]
[404712881,1770490204310,183.0,0.000105,2]
[404712882,1770490204864,183.0,0.000106,2]
[404712883,1770490205468,183.0,0.000107,2]
[404712884,1770490205502,500.0,0.00013273,2]
[404712885,1770490205557,500.0,0.00013821,2]
[404712886,1770490205974,183.0,0.000108,2]
[404712887,1770490206494,183.0,0.000109,2]
[404712888,1770490206961,183.0,0.00011,2]
[404712889,1770490207438,183.0,0.000111,2]
[404712890,1770490208018,183.0,0.000112,2]
[404712891,1770490208586,183.0,0.000113,2]
[404712892,1770490209056,183.0,0.000113,2]
[404712893,1770490209561,183.0,0.000114,2]
[404712894,1770490210123,183.0,0.000115,2]
[404712895,1770490210851,183.0,0.000116,2]
[404712896,1770490211422,183.0,0.000117,2]
[404712897,1770490211994,183.0,0.000118,2]
[404712898,1770490212579,183.0,0.000119,2]
[404712899,1770490213132,183.0,0.00012,2]
[404712900,1770490214524,183.0,0.000121,2]
[404712901,1770490215116,183.0,0.000122,2]
[404712902,1770490215676,183.0,0.000123,2]
[404712903,1770490216281,183.0,0.000124,2]
[404712904,1770490216837,183.0,0.000125,2]
[404712905,1770490217397,183.0,0.000126,2]
[404712906,1770490217954,183.0,0.000127,2]
[404712907,1770490218510,183.0,0.000127,2]
[404712908,1770490218988,183.0,0.000128,2]
[404712909,1770490219547,183.0,0.000129,2]
[404712910,1770490220192,183.0,0.00013,2]
[404712911,1770490220744,183.0,0.000131,2]
[404712912,1770490221302,183.0,0.000132,2]
[404712913,1770490221773,183.0,0.000133,2]
[404712914,1770490222340,183.0,0.000134,2]
[404712915,1770490222905,183.0,0.000135,2]
[404712916,1770490223400,183.0,0.000136,2]
[404712917,1770490223966,183.0,0.000137,2]
[404712918,1770490224600,183.0,0.000138,2]
[404712919,1770490225157,183.0,0.000139,2]
[404712920,1770490225815,183.0,0.00014,2]
[404712921,1770490226293,183.0,0.00014,2]
[404712922,1770490226958,183.0,0.000141,2]
[404712923,1770490227499,183.0,0.000142,2]
[404712924,1770490228223,183.0,0.000143,2]
[404712925,1770490228599,183.0,0.000144,2]
[404712926,1770490229149,183.0,0.000145,2]
[404712927,1770490229702,183.0,0.000146,2]
[404712928,1770490230194,183.0,0.000147,2]
[404712929,1770490230800,183.0,0.000148,2]
[404712930,1770490231354,183.0,0.000149,2]
[404712957,1770490231783,-5000.0,0.0002113,2]
[404712958,1770490231792,-1200.0,0.00021342,2]
[404712959,1770490231802,-5000.0,0.00021343,2]
[404712960,1770490231811,-300.0,0.00021517,2]
[404712961,1770490231820,-300.0,0.00021517,2]
[404712962,1770490231830,-300.0,0.00021517,2]
[404712964,1770490231839,-300.0,0.00021517,2]
[404712965,1770490231848,-683.56832347,0.00021518,2]
[404712966,1770490231858,-7583.83367652,0.00021618,2]
[404712968,1770490231869,-1060.22130704,0.00021618,2]
[404712970,1770490231881,-24.421824,0.00021618,2]
[404712973,1770490231890,-150.0,0.00021668,2]
[404712974,1770490231899,-501.08741213,0.00021918,2]
[404712975,1770490231909,-500.0,0.00022118,2]
[404712976,1770490231918,-4522.2766184,0.00022118,2]
[404712977,1770490231927,-1000.0,0.00022873,2]
[404712978,1770490231936,-1000.0,0.00022873,2]
[404712979,1770490231945,-1000.0,0.00022873,2]
[404712980,1770490231955,-1000.0,0.00022873,2]
[404712981,1770490231964,-1000.0,0.00022873,2]
[404712982,1770490231974,-1000.0,0.00022873,2]
[404712983,1770490231983,-1000.0,0.00022873,2]
[404712984,1770490231992,-592.86014547,0.00022873,2]
[404712985,1770490232034,183.0,0.00015,2]
[404712986,1770490232404,183.0,0.000151,2]
[404713013,1770490237864,-5000.0,0.00020919,2]
[404713015,1770490237874,-500.0,0.00021675,2]
[404713017,1770490237883,-500.0,0.00021675,2]
[404713018,1770490237893,-500.0,0.00021675,2]
[404713021,1770490237902,-500.0,0.00021675,2]
[404713022,1770490237911,-500.0,0.00021675,2]
[404713025,1770490237922,-618.32532156,0.00021675,2]
[404713026,1770490237931,-500.0,0.00021675,2]
[404713029,1770490237940,-221.30557458,0.00021675,2]
[404713031,1770490237951,-500.0,0.00021675,2]
[404713032,1770490237961,-500.0,0.00021675,2]
[404713035,1770490237971,-500.0,0.00021675,2]
[404713037,1770490237981,-500.0,0.00021675,2]
[404713039,1770490237991,-500.0,0.00021675,2]
[404713041,1770490238000,-500.0,0.00021675,2]
[404713043,1770490238013,-500.0,0.00021675,2]
[404713045,1770490238023,-550.77493766,0.00021675,2]
[404713047,1770490238033,-456.24941821,0.00021675,2]
[404713049,1770490238042,-500.0,0.00021675,2]
[404713051,1770490238052,-500.0,0.00021675,2]
[404713053,1770490238061,-500.0,0.00021675,2]
[404713055,1770490238071,-407.13985453,0.00022873,2]
[404713057,1770490238080,-1000.0,0.00022873,2]
[404713059,1770490238090,-1000.0,0.00022873,2]
[404713061,1770490238099,-1000.0,0.00022873,2]
[404713063,1770490238109,-1000.0,0.00022873,2]
[404713064,1770490238120,-1000.0,0.00022873,2]
[404713066,1770490238129,-1000.0,0.00022873,2]
[404713068,1770490238139,-532.24359328,0.00022873,2]
[404713070,1770490238150,-201.65,0.00023,2]
[404713072,1770490238159,-1680.0,0.00023317,2]
[404713074,1770490238169,-711.47783842,0.00023343,2]
[404713076,1770490238179,-300.0,0.00023393,2]
[404713078,1770490238189,-420.0,0.00023393,2]
[404713079,1770490238199,-412.0,0.00023393,2]
[404713081,1770490238209,-177.0,0.00023668,2]
[404713083,1770490238219,-683.56832344,0.00024053,2]
[404713085,1770490238228,-153.62684865,0.00025274,2]
[404713087,1770490238238,-587.0,0.00025433,2]
[404713089,1770490238247,-2220.0,0.00025475,2]
[404713091,1770490238258,-204.0,0.00025668,2]
[404713093,1770490238268,-683.56832344,0.00026589,2]
[404713095,1770490238277,-500.0,0.00026817,2]
[404713097,1770490238287,-254.54042014,0.00026817,2]
[404713099,1770490238297,-741.63626124,0.00026876,2]
[404713101,1770490238306,-1027.02950442,0.00027,2]
[404713103,1770490238315,-181.1213232,0.00027123,2]
[404713104,1770490238325,-151.0,0.00027354,2]
[404713106,1770490238334,-151.0,0.00027397,2]
[404713108,1770490238343,-151.0,0.00027397,2]
[404713110,1770490238353,-151.0,0.00027397,2]
[404713119,1770490238480,-151.0,0.00027397,2]
[404713121,1770490238490,-151.0,0.00027397,2]
[404713123,1770490238500,-151.0,0.00027397,2]
[404713124,1770490238511,-224.903696,0.00027397,2]
[404713125,1770490238520,-286.335041,0.00027397,2]
[404713126,1770490238529,-799.0,0.00027651,2]
[404713127,1770490238539,-231.0,0.00027668,2]
[404713128,1770490238548,-2535.92461455,0.000279,4]
[404713129,1770490238558,-250.0,0.0002792,2]
[404713130,1770490238569,-9952.34274367,0.00027962,7]
[404713131,1770490238581,-967.8651178,0.00027962,7]
[404713132,1770490238591,-151.0,0.00027962,7]
[404713133,1770490238601,-151.0,0.00027962,7]
[404713134,1770490238611,-151.0,0.00027962,7]
[404713135,1770490238621,-741.63626124,0.0002798,7]
[404713136,1770490238631,-250.0,0.00028,2]
[404713137,1770490238642,-3000.0,0.00028,3]
[404713138,1770490238652,-185.96252,0.00028,7]
[404713139,1770490238666,-168.85197442,0.00028,5]
[404713140,1770490238677,-1023.0,0.00028,2]
[404713141,1770490238687,-1071.0,0.00028048,10]
[404713142,1770490238697,-1147.41,0.0002838,10]
[404713143,1770490238707,-8272.71531008,0.0002839,2]
[404713554,1770490244158,-3787.0760727,0.00028106,2]
[404713556,1770490244169,-11189.99866782,0.0002839,2]
[404713558,1770490244179,-736.72,0.0002839,3]
[404713560,1770490244188,-368.36,0.0002839,3]
[404713561,1770490244198,-184.18,0.0002839,3]
[404713563,1770490244209,-552.57,0.0002839,3]
[404713565,1770490244218,-8181.09525948,0.000284,2]
[404713725,1770490246000,-380.836469,0.00027397,2]
[404713727,1770490246009,-380.836469,0.000279,7]
[404713729,1770490246020,-325.7726722,0.00028,7]
[404713733,1770490246053,-55.0637968,0.00028,7]
[404713735,1770490246062,-3996.93857608,0.0002829,2]
[404713738,1770490246073,-10230.82729755,0.0002829,2]
[404713748,1770490246164,-6912.14891207,0.0002829,2]
[404715632,1770490265867,500.0,0.00013273,2]
[404720017,1770490327806,500.0,0.00013699,2]
[404720018,1770490328958,500.0,0.00013273,2]
[404720020,1770490383836,647.09803383,0.00013699,2]
[404720021,1770490384149,500.0,0.00013699,2]
[404720022,1770490384208,500.0,0.00014247,2]
[404720023,1770490387125,500.0,0.00013273,2]
[404720024,1770490387592,500.0,0.00013273,2]
[404720025,1770490388766,500.0,0.00013273,2]
[404720026,1770490390152,503.08289833,0.00013273,2]
[404720027,1770490391476,500.39494591,0.00013273,2]
[404720028,1770490394627,500.0,0.00013699,2]
[404720029,1770490397767,500.0,0.00013273,2]
[404720030,1770490397794,504.68662575,0.00013821,2]
[404720031,1770490399456,500.0,0.00013273,2]
[404720032,1770490399488,500.0,0.00013273,2]
[404720033,1770490401335,500.0,0.00013699,2]
[404720034,1770490403198,500.0,0.00013699,2]
[404720036,1770490444497,500.0,0.00013699,2]
[404720037,1770490444547,500.0,0.00013273,2]
[404720038,1770490444576,171.64953821,0.00014247,2]
[404720039,1770490444608,1000.0,0.00013821,2]
[404720040,1770490444664,1500.0,0.00014368,2]
[404720041,1770490444717,500.0,0.00014916,2]
[404720044,1770490503177,500.0,0.00013699,2]
[404720045,1770490503225,344.24720649,0.00014247,2]
[404720047,1770490507452,500.0,0.00013273,2]
[404720048,1770490507507,1000.0,0.00013821,2]
[404720049,1770490507565,1500.0,0.00014368,2]
[404720050,1770490507623,1571.00437905,0.00014916,2]
[404720051,1770490509541,500.0,0.00013273,2]
[404720052,1770490511981,500.0,0.00013273,2]
[404720053,1770490513534,500.0,0.00013273,2]
[404720054,1770490515900,500.0,0.00013273,2]
[404720055,1770490518899,500.0,0.00013273,2]
[404720056,1770490519226,500.0,0.00013273,2]
[404720057,1770490520160,500.0,0.00013273,2]
[404720058,1770490531958,500.0,0.00013273,2]
[404720061,1770490565421,498.48854644,0.00013699,2]
[404720070,1770490623825,210.44628504,0.00013273,2]
[404720073,1770490743466,160.9968606,0.00013699,2]
[404720077,1770490863783,506.42659104,0.00013699,2]
[404720079,1770490867267,500.0,0.00013273,2]
[404720086,1770491047414,500.0,0.00013273,2]
[404720088,1770491106985,500.0,0.00013699,2]
[404720089,1770491107046,503.18327958,0.00014247,2]
[404720090,1770491107106,500.0,0.00013699,2]
[404720091,1770491107142,611.48591482,0.00014247,2]
[404720092,1770491107170,189.88697358,0.00013699,2]
[404720093,1770491132524,309.37009823,0.00013699,2]
[404720097,1770491179783,552.85532759,0.00013273,2]
[404720099,1770491229656,351.80162554,0.00013699,2]
[404720100,1770491240635,10000.0,0.00030137,120]
[404720113,1770491343970,500.0,0.00013273,2]
[404720131,1770491431998,-394.63920266,0.00018832,2]
[404720132,1770491432009,-968.91284753,0.00018832,2]
[404720133,1770491432020,-1397.91517571,0.00018832,2]
[404720172,1770491438059,-880.54624948,0.00018832,2]
[404720174,1770491438070,-5000.0,0.00019022,2]
[404720175,1770491438080,-5000.0,0.00019214,2]
[404720176,1770491438090,-707.0,0.00019214,2]
[404720178,1770491438099,-150.0,0.00019311,2]
[404720180,1770491438108,-1200.0,0.00019407,2]
[404720182,1770491438118,-8495.01539317,0.00019408,2]
[404720184,1770491438127,-177.0,0.00021311,2]
[404720185,1770491438137,-500.0,0.00021458,2]
[404720188,1770491438147,-500.0,0.00022118,2]
[404720190,1770491438157,-204.0,0.00023311,2]
[404720192,1770491438167,-187.131378,0.0002402,2]
[404720193,1770491438176,-500.0,0.00025182,2]
[404720195,1770491438186,-234.36436334,0.00025182,2]
[404720197,1770491438195,-500.0,0.00025182,2]
[404720199,1770491438206,-227.86388196,0.00025182,2]
[404720200,1770491438215,-500.0,0.00025182,2]
[404720202,1770491438224,-500.0,0.00025182,2]
[404720204,1770491438233,-500.0,0.00025182,2]
[404720206,1770491438243,-211.94491083,0.00025182,2]
[404720208,1770491438252,-439.58326869,0.00025182,2]
[404720209,1770491438262,-388.82,0.00025184,2]
[404720212,1770491438272,-7728.96499985,0.00025184,2]
[404720214,1770491438283,-1854.65164766,0.00025184,2]
[404720715,1770491445002,-15418.17037337,0.00025184,2]
[404720831,1770491446111,-2135.77397851,0.00025184,2]
[404720833,1770491446122,-663.21117266,0.00025184,2]
[404723844,1770491884246,391.14500463,0.00013273,2]
[404723849,1770491943201,285.99235154,0.00013273,2]
[404723851,1770492007819,500.0,0.00013273,2]
[404723852,1770492008743,500.0,0.00013273,2]
[404723853,1770492066285,500.0,0.00013273,2]
[404723854,1770492066338,1000.0,0.00013821,2]
[404723858,1770492123614,500.0,0.00013273,2]
[404723859,1770492123661,500.0,0.00013821,2]
[404723862,1770492189327,500.0,0.00013699,2]
[404723863,1770492189903,337.83295742,0.00013699,2]
[404723864,1770492195412,438.16441978,0.00013699,2]
[404723871,1770492303820,352.90196617,0.00013699,2]
[404723872,1770492304064,501.01127403,0.00013699,2]
[404723873,1770492306989,500.0,0.00013273,2]
[404723874,1770492307053,614.20020313,0.00013821,2]
[404723875,1770492309789,500.0,0.00013699,2]
[404723876,1770492313493,500.0,0.00013699,2]
[404723881,1770492431529,500.0,0.00013699,2]
[404723932,1770492632137,-1626.73351469,0.0001683,2]
[404723993,1770492638222,-1971.51095744,0.0001683,2]
[404723996,1770492638233,-1060.1075919,0.0001683,2]
[404724001,1770492638277,-341.64793597,0.0001683,2]
[404724003,1770492638286,-203.1430219,0.000169,2]
[404724573,1770492645490,-5925.44489185,0.000169,2]
[404724575,1770492645500,-4806.09001412,0.00017,2]
[404724608,1770492645797,-5000.0,0.00016731,2]
[404724610,1770492645806,-3905.66899563,0.00017,2]
[404725073,1770492666554,158.30619502,0.00013699,2]
[404725074,1770492724907,515.39829676,0.00013699,2]
[404725081,1770493025226,277.12604042,0.00013699,2]
[404725082,1770493052970,5000.0,0.000159,2]
[404725083,1770493075266,195.11149013,0.000159,2]
[404725086,1770493240273,5000.0,0.000159,2]
[404725087,1770493262395,5000.0,0.000159,2]
[404725088,1770493264510,500.0,0.00013699,2]
[404725089,1770493284331,5000.0,0.000159,2]
[404725090,1770493306488,3994.37353429,0.000159,2]
[404725143,1770493832389,-150.0,0.00016228,2]
[404725145,1770493832399,-6912.14891207,0.00016311,2]
[404725147,1770493832408,-500.0,0.00016411,2]
[404725149,1770493832418,-203.23,0.000165,2]
[404725152,1770493832427,-1288.24099025,0.00017,2]
[404725155,1770493832436,-113.67929644,0.00018228,2]
[404725158,1770493832448,-63.32070356,0.00018228,2]
[404725160,1770493832458,-203.23,0.000201,2]
[404725162,1770493832469,-250.0,0.00020162,2]
[404725164,1770493832478,-204.0,0.00020228,2]
[404725166,1770493832487,-440.17438033,0.00021821,2]
[404725173,1770493832541,-600.0,0.00021821,2]
[404725245,1770493840634,-2750.04507,0.00021821,2]
[404725247,1770493844951,-806.99127554,0.00021821,2]
[404725248,1770493845752,-7564.41451873,0.00021821,2]
[404725249,1770493845765,-500.0,0.00021918,2]
[404725250,1770493845777,-231.0,0.00022228,2]
[404725251,1770493845789,-413.702175,0.00022499,2]
[404725252,1770493845800,-499.25510545,0.00023,2]
[404725253,1770493845811,-473.53260077,0.00023288,2]
[404725254,1770493845823,-258.0,0.00024228,2]
[404725255,1770493845837,-1000.0,0.00024983,30]
[404725256,1770493845848,-187.131378,0.00025283,2]
[404725257,1770493845858,-242.22,0.00025372,2]
[404725258,1770493845868,-701.03265017,0.00025387,2]
[404725259,1770493845879,-500.0,0.00025471,2]
[404725260,1770493845892,-16240.37611139,0.00025487,2]
[404725261,1770493845904,-395.85696176,0.00025487,2]
[404725263,1770493846436,-5175.24583408,0.00025487,2]
[404725264,1770493846548,-1605.38056747,0.00025487,2]
[404725265,1770493846558,-1147.5768051,0.00025487,2]
[404725266,1770493846569,-446.72030139,0.00025629,2]
[404725267,1770493846580,-359.44757748,0.00025629,2]
[404725268,1770493846591,-500.0,0.00025786,2]
[404725269,1770493846601,-250.0,0.00025786,2]
[404725270,1770493846611,-250.0,0.00025786,2]
[404725271,1770493846625,-187.78006525,0.00025786,2]
[404725273,1770493846635,-194.72792766,0.00025786,2]
[404725274,1770493846645,-500.0,0.00025786,2]
[404725275,1770493846658,-250.0,0.00025786,2]
[404725276,1770493846667,-201.932861,0.00025786,2]
[404725277,1770493846679,-250.0,0.00025786,2]
[404725278,1770493846690,-250.0,0.00025786,2]
[404725279,1770493846700,-250.0,0.00025786,2]
[404725280,1770493846710,-250.0,0.00025786,2]
[404725281,1770493846719,-250.0,0.00025786,2]
[404725282,1770493846734,-193.80447074,0.00025786,2]
[404725283,1770493846743,-250.0,0.00025786,2]
[404725284,1770493846753,-741.63626124,0.00026204,2]
[404725285,1770493846762,-285.0,0.00026228,2]
[404725286,1770493846771,-177.17618154,0.00026491,5]
[404725287,1770493846782,-168.0,0.00026547,2]
[404725288,1770493846792,-187.131378,0.00026547,2]
[404725289,1770493846802,-376.3706505,0.00027,15]
[404725290,1770493846812,-177.17618153,0.00027311,5]
[404725291,1770493846822,-701.03265015,0.00027369,2]
[404725292,1770493846832,-323.710999,0.00027397,2]
[404725293,1770493846841,-181.1213232,0.00027548,2]
[404725294,1770493846851,-187.131378,0.00027811,2]
[404725295,1770493847000,-1029.0,0.00028,2]
[404725296,1770493847012,-168.0,0.00028048,2]
[404725297,1770493847021,-312.0,0.00028228,2]
[404725298,1770493847031,-168.0,0.00028336,2]
[404725299,1770493847041,-151.0,0.0002839,7]
[404725300,1770493847050,-151.0,0.0002839,7]
[404725301,1770493847060,-196.68105741,0.0002839,2]
[404725302,1770493847076,-2197.16759105,0.0002839,2]
[404725374,1770493929558,500.0,0.00013699,2]
[404725859,1770494114229,500.0,0.00013699,2]
[404725870,1770494231302,500.0,0.00013699,2]
[404725874,1770494351797,424.21621103,0.00013699,2]
[404726088,1770494557969,-1174.82323923,0.00024772,2]
[404726089,1770494558011,-1144.24810406,0.00024772,2]
[404726097,1770494723534,234.77253243,0.00013699,2]
[404726105,1770494776046,500.0,0.00013699,2]
[404726106,1770494776080,532.93019237,0.00014247,2]
[404726234,1770495031572,-2408.16916178,0.00024279,2]
[404726301,1770495046041,-1145.67471394,0.00024279,2]
[404726302,1770495046051,-150.0,0.00024773,2]
[404726303,1770495046061,-478.84738722,0.00024773,2]
[404726304,1770495046093,-7375.77776915,0.00024773,2]
[404726384,1770495190842,500.0,0.00013273,2]
[404726385,1770495190870,1000.0,0.00013821,2]
[404726390,1770495431233,500.0,0.00013273,2]
[404726448,1770495613800,500.0,0.00013273,2]
[404726576,1770496231772,-1081.66850248,0.000198,2]
[404726581,1770496231829,-3556.71893885,0.000198,2]
[404726582,1770496231841,-211.44754782,0.0002,2]
[404726583,1770496231854,-150.0,0.00020036,2]
[404726584,1770496231865,-177.0,0.00022036,2]
[404726585,1770496231876,-187.55289616,0.00024036,2]
[404727195,1770496245826,-16.44710384,0.00024036,2]
[404727197,1770496245836,-221.64,0.000256,2]
[404727199,1770496245848,-157.59285835,0.00025786,2]
[404727201,1770496245857,-182.23555823,0.00025786,2]
[404727203,1770496245867,-5020.644112,0.00025831,2]
[404727205,1770496245876,-8281.64036758,0.00025831,2]
[404727210,1770496245916,-4484.09142645,0.00025831,2]
[404728098,1770496327656,478.19814633,0.00013699,2]
[404728099,1770496330765,500.0,0.00013273,2]
[404728100,1770496383055,281.99454491,0.00013273,2]
[404728101,1770496386652,500.0,0.00013273,2]
[404728102,1770496388911,500.0,0.00013273,2]
[404728103,1770496389247,608.32613042,0.00013273,2]
[404728104,1770496389434,300.0,0.00013673,2]
[404728105,1770496390471,504.08949317,0.00013699,2]
[404728106,1770496395060,500.0,0.00013273,2]
[404728107,1770496396189,500.0,0.00013273,2]